lending/lending_fUSD_20241120
["ID","MTS","AMOUNT","RATE_DAILY","PERIOD"]
[342802016,1732143095368,-500.0,0.00056164,120]
[342802017,1732143095378,-500.0,0.00056164,120]
[342802018,1732143095388,-1926.82,0.00056164,120]
[342802019,1732143095399,-500.0,0.00056164,30]
[342802020,1732143095408,-342.37958455,0.00056164,120]
[342802021,1732143095419,-513.97,0.00056164,120]
[342802022,1732143095429,-500.0,0.00056164,120]
[342802023,1732143095438,-1258.94,0.00056164,120]
[342802024,1732143095448,-615.91,0.00056164,120]
[342802025,1732143095457,-500.0,0.00056164,120]
[342802026,1732143095467,-739.53,0.00056164,120]
[342802027,1732143095477,-500.0,0.00056164,120]
[342802028,1732143095487,-2364.09,0.00056164,120]
[342802029,1732143095498,-500.0,0.00056164,120]
[342802030,1732143095507,-500.0,0.00056164,120]
[342802031,1732143095518,-500.0,0.00056164,120]
[342802032,1732143095527,-1516.8,0.00056164,120]
[342802033,1732143095538,-644.03,0.00056164,120]
[342802034,1732143095547,-1222.69,0.00056164,120]
[342802035,1732143095557,-689.07,0.00056164,120]
[342802036,1732143095566,-2792.61,0.00056164,120]
[342802037,1732143095576,-500.0,0.00056164,120]
[342802038,1732143095586,-500.0,0.00056164,120]
[342802039,1732143095595,-500.0,0.00056164,120]
[342802040,1732143095605,-598.66,0.00056164,120]
[342802041,1732143095615,-500.0,0.00056164,120]
[342802042,1732143095624,-500.0,0.00056164,120]
[342802043,1732143095634,-517.71,0.00056164,120]
[342802044,1732143095643,-696.8,0.00056164,120]
[342802045,1732143095654,-670.6,0.00056164,120]
[342802046,1732143095663,-1622.41,0.00056164,120]
[342802047,1732143095674,-500.0,0.00056164,120]
[342802048,1732143095683,-732.47,0.00056164,120]
[342802049,1732143095693,-500.0,0.00056164,120]
[342802050,1732143095702,-500.0,0.00056164,120]
[342802051,1732143095713,-500.0,0.00056164,120]
[342802052,1732143095723,-500.0,0.00056164,120]
[342802053,1732143095732,-3752.95,0.00056164,120]
[342802054,1732143095742,-500.0,0.00056164,120]
[342802055,1732143095753,-694.86,0.00056164,120]
[342802056,1732143095763,-500.0,0.00056164,120]
[342802057,1732143095774,-500.0,0.00056164,120]
[342802058,1732143095784,-527.72,0.00056164,120]
[342802059,1732143095794,-2754.45,0.00056164,120]
[342802060,1732143095805,-151.0,0.00056164,120]
[342802061,1732143095815,-500.0,0.00056164,120]
[342802062,1732143095826,-500.0,0.00056164,60]
[342802063,1732143095835,-151.0,0.00056164,120]
[342802064,1732143095844,-1552.42,0.00056164,120]
[342802065,1732143095853,-750.37,0.00056164,120]
[342802066,1732143095863,-777.0,0.00056164,120]
[342802067,1732143095873,-586.88,0.00056164,120]
[342802068,1732143095884,-500.0,0.00056164,120]
[342802069,1732143095897,-151.0,0.00056164,120]
[342802070,1732143095907,-546.79,0.00056164,120]
[342802071,1732143095918,-500.0,0.00056164,120]
[342802072,1732143095927,-1410.35,0.00056164,120]
[342802073,1732143095938,-622.81,0.00056164,120]
[342802074,1732143095948,-151.0,0.00056164,120]
[342802075,1732143095958,-500.0,0.00056164,120]
[342802076,1732143095969,-500.0,0.00056164,120]
[342802077,1732143095979,-1078.42,0.00056164,120]
[342802078,1732143095988,-2348.91,0.00056164,120]
[342802079,1732143095998,-211.88091979,0.00056164,120]
[342802080,1732143096008,-1803.88,0.00056164,120]
[342802081,1732143096017,-875.42,0.00056164,120]
[342802082,1732143096027,-151.0,0.00056164,120]
[342802083,1732143096036,-500.0,0.00056164,120]
[342802084,1732143096046,-908.45,0.00056164,120]
[342802085,1732143096056,-505.74255937,0.00056164,120]
[342802086,1732143096065,-1745.98,0.00056164,120]
[342802087,1732143096075,-643.69,0.00056164,120]
[342802088,1732143096084,-659.6,0.00056164,120]
[342802089,1732143096094,-500.0,0.00056164,120]
[342802090,1732143096103,-1212.54,0.00056164,120]
[342802091,1732143096114,-2042.25,0.00056164,120]
[342802092,1732143096124,-828.06,0.00056164,120]
[342802093,1732143096134,-500.0,0.00056164,120]
[342802094,1732143096143,-500.0,0.00056164,120]
[342802095,1732143096153,-151.0,0.00056164,120]
[342802096,1732143096162,-646.63,0.00056164,120]
[342802097,1732143096173,-806.31,0.00056164,120]
[342802098,1732143096183,-500.0,0.00056164,120]
[342802099,1732143096192,-1287.88,0.00056164,120]
[342802100,1732143096202,-1410.77,0.00056164,120]
[342802101,1732143096211,-500.0,0.00056164,120]
[342802102,1732143096220,-500.0,0.00056164,120]
[342802103,1732143096230,-500.0,0.00056164,120]
[342802104,1732143096239,-623.91,0.00056164,120]
[342802105,1732143096249,-500.0,0.00056164,120]
[342802106,1732143096258,-766.21,0.00056164,120]
[342802107,1732143096366,-500.0,0.00056164,120]
[342802108,1732143096375,-1000.52,0.00056164,120]
[342802109,1732143096384,-500.0,0.00056164,120]
[342802110,1732143096393,-500.0,0.00056164,120]
[342802111,1732143096402,-1013.49,0.00056164,120]
[342802112,1732143096412,-500.0,0.00056164,120]
[342802113,1732143096422,-811.56,0.00056164,120]
[342802114,1732143096431,-500.0,0.00056164,120]
[342802115,1732143096441,-3361.2,0.00056164,120]
[342802116,1732143096451,-633.81,0.00056164,120]
[342802117,1732143096460,-1185.33,0.00056164,120]
[342802118,1732143096469,-838.48,0.00056164,120]
[342802119,1732143096478,-1382.6,0.00056164,120]
[342802120,1732143096487,-500.0,0.00056164,120]
[342802121,1732143096496,-500.0,0.00056164,120]
[342802122,1732143096505,-2198.56,0.00056164,120]
[342802123,1732143096514,-658.16,0.00056164,120]
[342802124,1732143096524,-500.0,0.00056164,120]
[342802125,1732143096534,-500.0,0.00056164,120]
[342802126,1732143096543,-500.0,0.00056164,120]
[342802127,1732143096553,-500.0,0.00056164,120]
[342802128,1732143096562,-500.0,0.00056164,120]
[342802129,1732143096570,-581.06,0.00056164,120]
[342802130,1732143096579,-500.0,0.00056164,120]
[342802131,1732143096589,-843.03,0.00056164,120]
[342802132,1732143096599,-500.0,0.00056164,120]
[342802133,1732143096608,-665.72,0.00056164,120]
[342802134,1732143096618,-500.0,0.00056164,120]
[342802135,1732143096628,-789.82,0.00056164,120]
[342802136,1732143096638,-660.24,0.00056164,120]
[342802137,1732143096647,-773.4,0.00056164,120]
[342802138,1732143096658,-500.0,0.00056164,120]
[342802139,1732143096668,-504.35,0.00056164,120]
[342802140,1732143096678,-2411.2,0.00056164,120]
[342802141,1732143096688,-500.0,0.00056164,120]
[342802142,1732143096697,-3997.56,0.00056164,120]
[342802143,1732143096708,-500.0,0.00056164,120]
[342802144,1732143096718,-500.0,0.00056164,120]
[342802145,1732143096728,-500.0,0.00056164,120]
[342802146,1732143096738,-500.0,0.00056164,120]
[342802147,1732143096747,-220.349852,0.00056164,120]
[342802148,1732143096756,-155.055593,0.00056164,120]
[342802149,1732143096766,-178.477726,0.00056164,120]
[342802150,1732143096775,-559.66,0.00056164,120]
[342802151,1732143096785,-303.85372894,0.00056164,120]
[342802152,1732143096794,-1755.1,0.00056164,120]
[342802153,1732143096803,-500.0,0.00056164,120]
[342802154,1732143096813,-500.0,0.00056164,120]
[342802155,1732143096823,-1021.42,0.00056164,120]
[342802156,1732143096832,-968.59,0.00056164,120]
[342802157,1732143096842,-500.0,0.00056164,120]
[342802158,1732143096850,-747.74,0.00056164,120]
[342802159,1732143096859,-650.26,0.00056164,120]
[342802160,1732143096868,-500.0,0.00056164,120]
[342802161,1732143096878,-552.66,0.00056164,120]
[342802162,1732143096890,-509.50631371,0.00056164,120]
[342802163,1732143096899,-528.53,0.00056164,120]
[342802164,1732143096908,-500.0,0.00056164,120]
[342802165,1732143096918,-661.12,0.00056164,120]
[342802166,1732143096927,-4504.33,0.00056164,120]
[342802167,1732143096937,-500.0,0.00056164,120]
[342802168,1732143096946,-500.0,0.00056164,120]
[342802169,1732143096955,-500.0,0.00056164,120]
[342802170,1732143096966,-1414.7,0.00056164,120]
[342802171,1732143096976,-500.0,0.00056164,120]
[342802172,1732143096986,-1839.1,0.00056164,20]
[342802173,1732143096995,-600.15,0.00056164,120]
[342802174,1732143097005,-500.0,0.00056164,120]
[342802175,1732143097014,-500.0,0.00056164,120]
[342802176,1732143097023,-639.71,0.00056164,120]
[342802177,1732143097033,-500.0,0.00056164,120]
[342802178,1732143097043,-500.0,0.00056164,120]
[342802179,1732143097052,-1685.02,0.00056164,120]
[342802180,1732143097062,-500.0,0.00056164,120]
[342802181,1732143097072,-643.92,0.00056164,120]
[342802182,1732143097081,-500.0,0.00056164,120]
[342802183,1732143097090,-500.0,0.00056164,120]
[342802184,1732143097099,-1838.85,0.00056164,120]
[342802185,1732143097108,-503.41,0.00056164,120]
[342802186,1732143097117,-777.36,0.00056164,120]
[342802187,1732143097127,-500.0,0.00056164,120]
[342802188,1732143097136,-1088.52,0.00056164,120]
[342802189,1732143097146,-3963.88,0.00056164,120]
[342802190,1732143097155,-332.70428624,0.00056164,120]
[342802191,1732143097166,-500.0,0.00056164,120]
[342802192,1732143097175,-500.0,0.00056164,120]
[342802193,1732143097184,-500.0,0.00056164,120]
[342802194,1732143097194,-500.0,0.00056164,120]
[342802195,1732143097204,-508.93,0.00056164,120]
[342802196,1732143097214,-500.0,0.00056164,120]
[342802197,1732143097223,-522.42248318,0.00056164,120]
[342802198,1732143097233,-500.0,0.00056164,120]
[342802199,1732143097242,-500.0,0.00056164,120]
[342802200,1732143097252,-522.18,0.00056164,120]
[342802201,1732143097261,-674.72,0.00056164,120]
[342802202,1732143097271,-1573.1,0.00056164,120]
[342802203,1732143097280,-500.0,0.00056164,120]
[342802204,1732143097289,-500.0,0.00056164,120]
[342802205,1732143097298,-500.0,0.00056164,120]
[342802206,1732143097307,-500.0,0.00056164,120]
[342802207,1732143097316,-1344.45,0.00056164,120]
[342802208,1732143097326,-500.0,0.00056164,120]
[342802209,1732143097335,-695.34,0.00056164,120]
[342802210,1732143097344,-5030.76,0.00056164,120]
[342802211,1732143097354,-993.23,0.00056164,120]
[342802212,1732143097365,-530.39,0.00056164,120]
[342802213,1732143097374,-500.0,0.00056164,120]
[342802214,1732143097383,-1007.71,0.00056164,120]
[342802215,1732143097392,-845.57,0.00056164,120]
[342802216,1732143097402,-1508.05,0.00056164,120]
[342802217,1732143097413,-1000.0,0.00056164,30]
[342802218,1732143097423,-500.0,0.00056164,120]
[342802219,1732143097432,-1949.27,0.00056164,120]
[342802220,1732143097443,-635.4,0.00056164,120]
[342802221,1732143097453,-3671.8,0.00056164,120]
[342802222,1732143097462,-500.0,0.00056164,120]
[342802223,1732143097472,-873.15,0.00056164,120]
[342802224,1732143097483,-500.0,0.00056164,120]
[342802225,1732143097493,-1275.78,0.00056164,120]
[342802226,1732143097503,-500.0,0.00056164,120]
[342802227,1732143097512,-1300.6,0.00056164,120]
[342802228,1732143097521,-1078.43,0.00056164,120]
[342802229,1732143097531,-575.97306022,0.00056164,120]
[342802230,1732143097542,-500.0,0.00056164,120]
[342802231,1732143097551,-1015.57,0.00056164,120]
[342802232,1732143097561,-729.83,0.00056164,120]
[342802233,1732143097570,-562.04,0.00056164,120]
[342802234,1732143097579,-2596.1,0.00056164,120]
[342802235,1732143097590,-500.0,0.00056164,120]
[342802236,1732143097599,-500.0,0.00056164,120]
[342802237,1732143097608,-2222.66,0.00056164,120]
[342802238,1732143097618,-1080.64,0.00056164,120]
[342802239,1732143097628,-852.14,0.00056164,120]
[342802240,1732143097638,-569.32,0.00056164,120]
[342802241,1732143097648,-509.24,0.00056164,120]
[342802242,1732143097659,-500.0,0.00056164,120]
[342802243,1732143097669,-700.0,0.00056164,120]
[342802244,1732143097683,-928.5,0.00056164,120]
[342802245,1732143097692,-236.98701117,0.00056164,120]
[342802246,1732143097702,-500.0,0.00056164,120]
[342802247,1732143097711,-500.0,0.00056164,120]
[342802248,1732143097721,-500.0,0.00056164,120]
[342802249,1732143097730,-1129.79,0.00056164,120]
[342802250,1732143097739,-1806.6,0.00056164,120]
[342802251,1732143097749,-500.0,0.00056164,120]
[342802252,1732143097758,-500.0,0.00056164,120]
[342802253,1732143097769,-2425.19,0.00056164,120]
[342802254,1732143097778,-500.0,0.00056164,120]
[342802255,1732143097789,-625.0,0.00056164,120]
[342802256,1732143097799,-500.0,0.00056164,120]
[342802257,1732143097809,-179.38234715,0.00056164,120]
[342802258,1732143097818,-500.0,0.00056164,120]
[342802259,1732143097828,-578.88672489,0.00056164,120]
[342802260,1732143097838,-1018.93,0.00056164,120]
[342802261,1732143097847,-2073.72,0.00056164,120]
[342802262,1732143097857,-500.0,0.00056164,120]
[342802263,1732143097866,-1011.93,0.00056164,120]
[342802264,1732143097877,-500.0,0.00056164,120]
[342802265,1732143097888,-1257.41,0.00056164,120]
[342802266,1732143097900,-500.0,0.00056164,120]
[342802267,1732143097909,-1328.54,0.00056164,120]
[342802268,1732143097919,-893.2,0.00056164,120]
[342802269,1732143097930,-878.56,0.00056164,120]
[342802270,1732143097939,-1954.12,0.00056164,120]
[342802271,1732143097949,-1107.33,0.00056164,120]
[342802272,1732143097959,-335.52650607,0.00056164,120]
[342802273,1732143097970,-500.0,0.00056164,120]
[342802274,1732143097979,-5394.68,0.00056164,120]
[342802275,1732143097988,-500.0,0.00056164,120]
[342802276,1732143097997,-500.0,0.00056164,60]
[342802277,1732143098006,-500.0,0.00056164,120]
[342802278,1732143098016,-500.0,0.00056164,120]
[342802279,1732143098026,-543.1,0.00056164,120]
[342802280,1732143098035,-965.73,0.00056164,120]
[342802281,1732143098045,-500.0,0.00056164,120]
[342802282,1732143098055,-500.0,0.00056164,120]
[342802283,1732143098065,-401.11630744,0.00056164,120]
[342802284,1732143098074,-500.0,0.00056164,120]
[342802285,1732143098084,-500.0,0.00056164,120]
[342802286,1732143098093,-500.0,0.00056164,120]
[342802287,1732143098103,-500.0,0.00056164,120]
[342802288,1732143098112,-500.0,0.00056164,120]
[342802289,1732143098123,-1317.76,0.00056164,120]
[342802290,1732143098133,-594.46,0.00056164,120]
[342802291,1732143098143,-1510.86,0.00056164,120]
[342802292,1732143098153,-1617.12,0.00056164,120]
[342802293,1732143098162,-295.57314305,0.00056164,120]
[342802294,1732143098174,-657.08,0.00056164,120]
[342802295,1732143098183,-4865.56,0.00056164,120]
[342802296,1732143098193,-628.07,0.00056164,120]
[342802297,1732143098203,-500.0,0.00056164,120]
[342802298,1732143098213,-500.0,0.00056164,120]
[342802299,1732143098223,-500.0,0.00056164,120]
[342802300,1732143098233,-502.69379621,0.00056164,120]
[342802301,1732143098243,-500.0,0.00056164,120]
[342802302,1732143098253,-2529.98,0.00056164,120]
[342802303,1732143098264,-500.0,0.00056164,120]
[342802304,1732143098275,-635.24,0.00056164,120]
[342802305,1732143098285,-750.97,0.00056164,120]
[342802306,1732143098295,-500.0,0.00056164,120]
[342802307,1732143098305,-1761.11,0.00056164,120]
[342802308,1732143098314,-624.76,0.00056164,120]
[342802309,1732143098325,-500.0,0.00056164,120]
[342802310,1732143098335,-46265.17,0.00056164,120]
[342802311,1732143098345,-500.0,0.00056164,120]
[342802312,1732143098354,-500.0,0.00056164,120]
[342802313,1732143098364,-644.52,0.00056164,120]
[342802314,1732143098374,-880.93,0.00056164,120]
[342802315,1732143098384,-500.0,0.00056164,120]
[342802316,1732143098393,-500.0,0.00056164,120]
[342802317,1732143098403,-4390.12,0.00056164,120]
[342802318,1732143098414,-500.0,0.00056164,120]
[342802319,1732143098425,-500.0,0.00056164,120]
[342802320,1732143098434,-3641.91,0.00056164,120]
[342802321,1732143098444,-500.0,0.00056164,120]
[342802322,1732143098454,-2046.77,0.00056164,120]
[342802323,1732143098464,-500.0,0.00056164,120]
[342802324,1732143098474,-500.0,0.00056164,120]
[342802325,1732143098484,-500.0,0.00056164,120]
[342802326,1732143098494,-519.31,0.00056164,120]
[342802327,1732143098505,-1582.94,0.00056164,120]
[342802328,1732143098516,-1566.08,0.00056164,120]
[342802329,1732143098526,-1540.18,0.00056164,120]
[342802330,1732143098535,-500.0,0.00056164,120]
[342802331,1732143098545,-500.0,0.00056164,120]
[342802332,1732143098554,-500.0,0.00056164,120]
[342802333,1732143098565,-500.0,0.00056164,120]
[342802334,1732143098576,-646.51717467,0.00056164,120]
[342802335,1732143098586,-200.0,0.00056164,10]
[342802336,1732143098597,-32182.96,0.00056164,120]
[342802337,1732143098608,-500.0,0.00056164,120]
[342802338,1732143098618,-2395.44,0.00056164,120]
[342802339,1732143098629,-500.0,0.00056164,120]
[342802340,1732143098639,-500.0,0.00056164,120]
[342802341,1732143098650,-500.0,0.00056164,120]
[342802342,1732143098660,-774.88,0.00056164,120]
[342802343,1732143098671,-500.0,0.00056164,120]
[342802344,1732143098681,-500.0,0.00056164,120]
[342802345,1732143098690,-500.0,0.00056164,120]
[342802346,1732143098700,-500.0,0.00056164,120]
[342802347,1732143098709,-500.0,0.00056164,120]
[342802348,1732143098719,-161.47312386,0.00056164,120]
[342802349,1732143098728,-3018.97,0.00056164,120]
[342802350,1732143098738,-500.0,0.00056164,120]
[342802351,1732143098749,-1221.56,0.00056164,120]
[342802352,1732143098760,-245.22970706,0.00056164,120]
[342802353,1732143098770,-949.33,0.00056164,120]
[342802354,1732143098781,-500.0,0.00056164,120]
[342802355,1732143098791,-500.0,0.00056164,120]
[342802356,1732143098801,-500.0,0.00056164,120]
[342802357,1732143098810,-500.0,0.00056164,120]
[342802358,1732143098820,-512.47,0.00056164,120]
[342802359,1732143098829,-500.0,0.00056164,120]
[342802360,1732143098840,-975.73,0.00056164,120]
[342802361,1732143098850,-500.0,0.00056164,120]
[342802362,1732143098862,-1680.87,0.00056164,120]
[342802363,1732143098873,-449.60032201,0.00056164,120]
[342802364,1732143098884,-2068.97,0.00056164,120]
[342802365,1732143098906,-509.92,0.00056164,120]
[342802366,1732143098917,-500.0,0.00056164,120]
[342802367,1732143098927,-500.0,0.00056164,120]
[342802368,1732143098936,-2386.08,0.00056164,120]
[342802369,1732143098946,-850.0,0.00056164,120]
[342802370,1732143098956,-2587.78,0.00056164,120]
[342802371,1732143098968,-1481.97,0.00056164,120]
[342802372,1732143098977,-489.38452048,0.00056164,120]
[342802373,1732143098987,-500.0,0.00056164,120]
[342802374,1732143098998,-1478.74,0.00056164,120]
[342802375,1732143099008,-500.0,0.00056164,120]
[342802376,1732143099018,-500.0,0.00056164,120]
[342802377,1732143099029,-580.13,0.00056164,120]
[342802378,1732143099040,-500.0,0.00056164,120]
[342802379,1732143099050,-500.0,0.00056164,120]
[342802380,1732143099060,-500.0,0.00056164,120]
[342802381,1732143099070,-500.0,0.00056164,120]
[342802382,1732143099080,-1753.89,0.00056164,120]
[342802383,1732143099090,-500.0,0.00056164,120]
[342802384,1732143099100,-500.0,0.00056164,120]
[342802385,1732143099110,-816.51,0.00056164,120]
[342802386,1732143099120,-2245.37,0.00056164,120]
[342802387,1732143099130,-10880.09,0.00056164,120]
[342802388,1732143099140,-500.0,0.00056164,120]
[342802389,1732143099150,-500.0,0.00056164,120]
[342802390,1732143099159,-151.0,0.00056164,120]
[342802391,1732143099170,-500.0,0.00056164,120]
[342802392,1732143099180,-3622.31,0.00056164,120]
[342802393,1732143099190,-502.6,0.00056164,120]
[342802394,1732143099200,-500.0,0.00056164,120]
[342802395,1732143099210,-500.0,0.00056164,120]
[342802396,1732143099220,-500.0,0.00056164,120]
[342802397,1732143099230,-1317.84,0.00056164,120]
[342802398,1732143099240,-1518.89,0.00056164,90]
[342802399,1732143099250,-151.0,0.00056164,120]
[342802400,1732143099260,-1643.31,0.00056164,120]
[342802401,1732143099269,-500.0,0.00056164,120]
[342802402,1732143099278,-510.1602833,0.00056164,120]
[342802403,1732143099288,-1298.63,0.00056164,120]
[342802404,1732143099298,-943.47,0.00056164,120]
[342802405,1732143099308,-500.0,0.00056164,120]
[342802406,1732143099318,-1649.32,0.00056164,120]
[342802407,1732143099328,-515.08223692,0.00056164,120]
[342802408,1732143099337,-550.87,0.00056164,120]
[342802409,1732143099347,-5640.48,0.00056164,120]
[342802410,1732143099357,-2158.9,0.00056164,120]
[342802411,1732143099366,-500.0,0.00056164,120]
[342802412,1732143099376,-500.0,0.00056164,120]
[342802413,1732143099385,-1165.26,0.00056164,120]
[342802414,1732143099395,-351.40532979,0.00056164,120]
[342802415,1732143099405,-1244.51,0.00056164,120]
[342802416,1732143099417,-500.0,0.00056164,120]
[342802417,1732143099426,-250.0,0.00056164,120]
[342802418,1732143099436,-151.0,0.00056164,120]
[342802419,1732143099446,-500.0,0.00056164,120]
[342802420,1732143099455,-9870.91,0.00056164,120]
[342802421,1732143099465,-500.9256,0.00056164,120]
[342802422,1732143099474,-1110.14,0.00056164,120]
[342802423,1732143099484,-162.8267464,0.00056164,120]
[342802424,1732143099493,-986.78,0.00056164,120]
[342802425,1732143099503,-567.02,0.00056164,120]
[342802426,1732143099512,-500.9256,0.00056164,120]
[342802427,1732143099522,-500.0,0.00056164,120]
[342802428,1732143099531,-651.9,0.00056164,120]
[342802429,1732143099541,-500.0,0.00056164,120]
[342802430,1732143099550,-500.0,0.00056164,120]
[342802431,1732143099560,-571.62569834,0.00056164,120]
[342802432,1732143099569,-3368.96,0.00056164,120]
[342802433,1732143099579,-500.0,0.00056164,120]
[342802434,1732143099588,-6243.58,0.00056164,120]
[342802435,1732143099599,-500.0,0.00056164,120]
[342802436,1732143099608,-1221.81,0.00056164,120]
[342802437,1732143099618,-1021.75,0.00056164,120]
[342802438,1732143099628,-1378.96,0.00056164,120]
[342802439,1732143099638,-500.0,0.00056164,120]
[342802440,1732143099648,-500.0,0.00056164,120]
[342802441,1732143099657,-1402.48,0.00056164,120]
[342802442,1732143099667,-1098.99,0.00056164,7]
[342802443,1732143099677,-2324.89,0.00056164,120]
[342802444,1732143099686,-500.0,0.00056164,120]
[342802445,1732143099696,-500.0,0.00056164,120]
[342802446,1732143099705,-3357.52,0.00056164,120]
[342802447,1732143099715,-500.0,0.00056164,120]
[342802448,1732143099724,-151.0,0.00056164,120]
[342802449,1732143099735,-1503.83,0.00056164,120]
[342802450,1732143099744,-631.52,0.00056164,120]
[342802451,1732143099754,-500.0,0.00056164,120]
[342802452,1732143099764,-610.46,0.00056164,120]
[342802453,1732143099774,-500.0,0.00056164,120]
[342802454,1732143099784,-4485.14,0.00056164,120]
[342802455,1732143099793,-676.3,0.00056164,120]
[342802456,1732143099804,-1449.22,0.00056164,120]
[342802457,1732143099815,-802.14,0.00056164,120]
[342802458,1732143099827,-1005.77,0.00056164,120]
[342802459,1732143099839,-62267.29,0.00056164,5]
[342802460,1732143099848,-500.0,0.00056164,120]
[342802461,1732143099858,-500.0,0.00056164,120]
[342802462,1732143099868,-1000.0,0.00056164,120]
[342802463,1732143099878,-500.0,0.00056164,120]
[342802464,1732143099892,-500.0,0.00056164,120]
[342802465,1732143099902,-500.0,0.00056164,120]
[342802466,1732143099912,-1200.11,0.00056164,120]
[342802467,1732143099922,-500.0,0.00056164,120]
[342802468,1732143099934,-4633.73,0.00056164,120]
[342802469,1732143099944,-1462.06,0.00056164,120]
[342802470,1732143099953,-1071.61,0.00056164,120]
[342802471,1732143099965,-1246.53,0.00056164,120]
[342802472,1732143099976,-500.0,0.00056164,120]
[342802473,1732143099987,-665.76,0.00056164,120]
[342802474,1732143099997,-500.0,0.00056164,120]
[342802475,1732143100008,-1619.4,0.00056164,120]
[342802476,1732143100018,-4155.63,0.00056164,120]
[342802477,1732143100028,-534.16,0.00056164,120]
[342802478,1732143100038,-500.0,0.00056164,120]
[342802479,1732143100047,-418.05166907,0.00056164,120]
[342802480,1732143100058,-500.0,0.00056164,120]
[342802481,1732143100069,-716.03,0.00056164,120]
[342802482,1732143100081,-710.7,0.00056164,120]
[342802483,1732143100091,-1328.15,0.00056164,120]
[342802484,1732143100102,-3842.23,0.00056164,120]
[342802485,1732143100112,-151.0,0.00056164,120]
[342802486,1732143100122,-1770.4,0.00056164,120]
[342802487,1732143100132,-1828.16,0.00056164,120]
[342802488,1732143100142,-734.2,0.00056164,120]
[342802489,1732143100152,-500.0,0.00056164,120]
[342802490,1732143100161,-500.0,0.00056164,120]
[342802491,1732143100173,-208.11453,0.00056164,120]
[342802492,1732143100182,-4113.57,0.00056164,120]
[342802493,1732143100192,-208.131322,0.00056164,120]
[342802494,1732143100203,-500.0,0.00056164,120]
[342802495,1732143100212,-3361.09,0.00056164,120]
[342802496,1732143100222,-2336.41,0.00056164,120]
[342802497,1732143100233,-208.11453,0.00056164,120]
[342802498,1732143100243,-914.26,0.00056164,120]
[342802499,1732143100252,-1225.66,0.00056164,120]
[342802500,1732143100262,-2227.59,0.00056164,120]
[342802501,1732143100272,-1199.34,0.00056164,120]
[342802502,1732143100283,-818.4,0.00056164,120]
[342802503,1732143100294,-500.0,0.00056164,120]
[342802504,1732143100303,-4656.57,0.00056164,120]
[342802505,1732143100313,-500.0,0.00056164,120]
[342802506,1732143100561,-945.67,0.00056164,120]
[342802507,1732143100570,-500.0,0.00056164,120]
[342802508,1732143100579,-656.2,0.00056164,120]
[342802509,1732143100588,-1601.15,0.00056164,120]
[342802510,1732143100599,-2590.51,0.00056164,120]
[342802511,1732143100609,-151.0,0.00056164,120]
[342802512,1732143100619,-500.0,0.00056164,120]
[342802513,1732143100628,-609.85,0.00056164,120]
[342802514,1732143100637,-500.0,0.00056164,120]
[342802515,1732143100646,-1087.48,0.00056164,120]